fUSD/lending_fUSD_20251226
["ID","MTS","AMOUNT","RATE_DAILY","PERIOD"]
[399852730,1766745052770,-463.94482134,0.00042365,120]
[399852731,1766745052779,-713.97283296,0.00042365,120]
[399852732,1766745052788,-500.0,0.00042365,120]
[399852733,1766745052799,-206.39738047,0.00042365,120]
[399852734,1766745052808,-740.38982778,0.00042365,120]
[399852735,1766745052818,-500.0,0.00042365,120]
[399852736,1766745052827,-767.7842514,0.00042365,120]
[399852737,1766745052836,-500.0,0.00042365,120]
[399852738,1766745052846,-520.9529979,0.00042365,120]
[399852739,1766745052855,-796.19226871,0.00042365,120]
[399852740,1766745052864,-151.0,0.00042365,120]
[399852741,1766745052874,-341.10507913,0.00042365,120]
[399852742,1766745052983,-484.54630352,0.00042365,120]
[399852743,1766745052993,-220.0,0.00042365,120]
[399852744,1766745053002,-151.0,0.00042365,120]
[399852745,1766745053012,-220.0,0.00042365,120]
[399852746,1766745053022,-151.0,0.00042365,120]
[399852747,1766745053031,-220.0,0.00042365,120]
[399852748,1766745053042,-151.0,0.00042365,120]
[399852749,1766745053052,-220.0,0.00042365,120]
[399852750,1766745053062,-151.0,0.00042365,120]
[399852751,1766745053072,-306.92224344,0.00042365,120]
[399852752,1766745053081,-500.0,0.00042365,120]
[399852753,1766745053091,-151.0,0.00042365,120]
[399852754,1766745053100,-1500.0,0.00042365,120]
[399852755,1766745053110,-500.0,0.00042365,120]
[399852756,1766745053120,-151.0,0.00042365,120]
[399852757,1766745053130,-500.0,0.00042365,120]
[399852758,1766745053140,-1500.0,0.00042365,120]
[399852759,1766745053150,-151.0,0.00042365,120]
[399852760,1766745053159,-500.0,0.00042365,120]
[399852761,1766745053169,-1500.0,0.00042365,120]
[399852762,1766745053178,-151.0,0.00042365,120]
[399852763,1766745053188,-500.0,0.00042365,120]
[399852764,1766745053198,-1500.0,0.00042365,120]
[399852765,1766745053207,-500.0,0.00042365,120]
[399852766,1766745053217,-1500.0,0.00042365,120]
[399852767,1766745053226,-500.0,0.00042365,120]
[399852768,1766745053236,-1500.0,0.00042365,120]
[399852769,1766745053245,-500.0,0.00042365,120]
[399852770,1766745053255,-1500.0,0.00042365,120]
[399852771,1766745053264,-500.0,0.00042365,120]
[399852772,1766745053274,-1500.0,0.00042365,120]
[399852773,1766745053283,-1500.0,0.00042365,120]
[399852774,1766745053293,-1000.0,0.00042369,2]
[399852775,1766745053303,-1256.0,0.0004237,14]
[399852776,1766745053312,-1256.0,0.0004237,14]
[399852777,1766745053322,-728.56053121,0.0004237,14]
[399852778,1766745053331,-273.22527078,0.0004237,120]
[399852779,1766745053340,-394.89794238,0.0004237,120]
[399852780,1766745053351,-208.960758,0.0004237,120]
[399852781,1766745053360,-713.74827341,0.00042372,2]
[399852782,1766745053370,-500.0,0.00042372,120]
[399852783,1766745053379,-500.0,0.00042372,120]
[399852784,1766745053389,-500.0,0.00042372,120]
[399852785,1766745053398,-500.0,0.00042372,120]
[399852786,1766745053407,-500.0,0.00042372,120]
[399852787,1766745053417,-500.0,0.00042372,120]
[399852788,1766745053427,-500.0,0.00042372,120]
[399852789,1766745053436,-500.0,0.00042372,120]
[399852790,1766745053446,-500.0,0.00042372,120]
[399852791,1766745053455,-500.0,0.00042372,120]
[399852792,1766745053464,-500.0,0.00042372,120]
[399852793,1766745053474,-530.0,0.00042372,120]
[399852794,1766745053483,-500.0,0.00042372,120]
[399852795,1766745053493,-500.0,0.00042372,120]
[399852796,1766745053503,-500.0,0.00042372,120]
[399852797,1766745053512,-500.0,0.00042372,120]
[399852798,1766745053522,-500.0,0.00042372,120]
[399852799,1766745053531,-500.0,0.00042372,120]
[399852800,1766745053544,-500.0,0.00042372,120]
[399852801,1766745053554,-500.0,0.00042372,120]
[399852802,1766745053564,-500.0,0.00042372,120]
[399852803,1766745053575,-500.0,0.00042372,120]
[399852804,1766745053585,-500.0,0.00042372,120]
[399852805,1766745053594,-500.0,0.00042372,120]
[399852806,1766745053603,-500.0,0.00042372,120]
[399852807,1766745053614,-500.0,0.00042372,120]
[399852808,1766745053624,-500.0,0.00042372,120]
[399852809,1766745053634,-500.0,0.00042372,120]
[399852810,1766745053644,-500.0,0.00042372,120]
[399852811,1766745053654,-500.0,0.00042372,120]
[399852812,1766745053664,-500.0,0.00042372,120]
[399852813,1766745053674,-500.0,0.00042372,120]
[399852814,1766745053684,-500.0,0.00042372,120]
[399852815,1766745053693,-500.0,0.00042372,120]
[399852816,1766745053703,-500.0,0.00042372,120]
[399852817,1766745053713,-500.0,0.00042372,120]
[399852818,1766745053723,-500.0,0.00042372,120]
[399852819,1766745053733,-500.0,0.00042372,120]
[399852820,1766745053743,-531.0,0.00042372,120]
[399852821,1766745053753,-500.0,0.00042372,120]
[399852822,1766745053763,-500.0,0.00042372,120]
[399852823,1766745053773,-500.0,0.00042372,120]
[399852824,1766745053783,-500.0,0.00042372,120]
[399852825,1766745053792,-500.0,0.00042372,120]
[399852826,1766745053802,-500.0,0.00042372,120]
[399852827,1766745053812,-500.0,0.00042372,120]
[399852828,1766745053822,-500.0,0.00042372,120]
[399852829,1766745053832,-500.0,0.00042372,120]
[399852830,1766745053841,-500.0,0.00042372,120]
[399852831,1766745053851,-500.0,0.00042372,120]
[399852832,1766745053861,-500.0,0.00042372,120]
[399852833,1766745053870,-500.0,0.00042372,120]
[399852834,1766745053880,-500.0,0.00042372,120]
[399852835,1766745053889,-500.0,0.00042372,120]
[399852836,1766745053899,-849.0,0.00042372,120]
[399852837,1766745053909,-1383.56745154,0.00042373,30]
[399852838,1766745053919,-150.0,0.000424,26]
[399852839,1766745053929,-1389.32,0.000424,14]
[399852840,1766745053939,-3662.08,0.000424,14]
[399852841,1766745053949,-253.0,0.000424,39]
[399852842,1766745053958,-8192.66605497,0.000424,15]
[399852843,1766745053968,-2921.04856858,0.000424,15]
[399852844,1766745053978,-1483.0579161,0.000424,2]
[399852845,1766745053987,-1325.41,0.00042448,30]
[399852846,1766745053998,-50000.0,0.0004247,52]
[399852847,1766745054008,-19133.72549964,0.0004247,62]
[399852848,1766745054023,-11481.11060699,0.0004247,62]
[399852849,1766745054035,-639.72342524,0.0004247,62]
[399852850,1766745054046,-10709.07639842,0.0004247,62]
[399852851,1766745054090,-455.83943095,0.0004247,62]
[399852852,1766745054225,-151.0,0.00016162,2]
[399852853,1766745054235,-2430.0,0.00033661,2]
[399852854,1766745054245,-2430.0,0.00036661,2]
[399852855,1766745054256,-2430.0,0.00039661,2]
[399852856,1766745054265,-500.0,0.00042365,120]
[399852857,1766745054276,-500.0,0.00042365,120]
[399852858,1766745054285,-500.0,0.00042365,120]
[399852859,1766745054295,-500.0,0.00042365,120]
[399852860,1766745054304,-7580.52463876,0.0004247,62]
[399852861,1766745054314,-39919.51638674,0.0004247,42]
[399852862,1766745054325,-826.049999,0.0004247,42]
[399852863,1766745054337,-3111.98555366,0.0004247,42]
[399852864,1766745054348,-6142.4480606,0.0004247,42]
[399852865,1766745054357,-151.0,0.0004247,14]
[399852866,1766745054367,-152.993199,0.0004247,120]
[399852867,1766745054376,-151.0,0.0004247,7]
[399852868,1766745054386,-167.653019,0.0004247,120]
[399852869,1766745054395,-167.653019,0.0004247,120]
[399852870,1766745054405,-167.653019,0.0004247,120]
[399852871,1766745054414,-167.653019,0.0004247,120]
[399852872,1766745054423,-301.767671,0.0004247,120]
[399852873,1766745054433,-301.767671,0.0004247,120]
[399852874,1766745054443,-301.767671,0.0004247,120]
[399852875,1766745054452,-301.767678,0.0004247,120]
[399852876,1766745054462,-173.346932,0.0004247,120]
[399852877,1766745054473,-173.346932,0.0004247,120]
[399852878,1766745054482,-173.346932,0.0004247,120]
[399852879,1766745054491,-173.346938,0.0004247,120]
[399852880,1766745054501,-151.0,0.0004247,120]
[399852881,1766745054511,-151.0,0.0004247,120]
[399852882,1766745054520,-151.0,0.0004247,120]
[399852883,1766745054531,-151.0,0.0004247,120]
[399852884,1766745054550,-713.74827339,0.00042477,2]
[399852885,1766745054559,-237.39553425,0.00042477,14]
[399852886,1766745054569,-95442.61230391,0.00042483,30]
[399852887,1766745054614,-3547.43151558,0.00042483,30]
[399852888,1766745054626,-1900.97243915,0.00042483,30]
[399852889,1766745054638,-858.69059918,0.00042483,30]
[399852890,1766745054661,-1077.39894307,0.00042483,30]
[399853035,1766745698533,170.0,0.00030137,120]
[399853046,1766745880680,1600.0,0.00025103,120]
[399853047,1766745880895,1600.0,0.00027613,120]
[399853048,1766745881084,1600.0,0.00030123,120]
[399853059,1766745995241,283.859,0.00030137,120]
[399853063,1766746121822,1000.0,0.00030136,120]
[399853070,1766746162444,5000.0,0.00030136,120]
[399853082,1766746232110,-381.154,0.0001519,2]
[399853083,1766746232120,-173.05731677,0.00015399,2]
[399853084,1766746232130,-1105.81499666,0.00015399,2]
[399853085,1766746232139,-198.77731683,0.000154,2]
[399853086,1766746232149,-8354.50595837,0.000154,2]
[399853089,1766746237902,-88880.00000001,0.000154,2]
[399853090,1766746237914,-851.84388038,0.000154,2]
[399853091,1766746237980,-1720.35,0.000154,2]
[399853092,1766746238061,-12437.73306498,0.000154,2]
[399853093,1766746238074,-300.6,0.000154,2]
[399853094,1766746238087,-2751.20132915,0.000154,2]
[399853117,1766746240006,-884703.76576711,0.000154,2]
[399853118,1766746240024,-500.0,0.00015499,2]
[399853119,1766746240036,-500.0,0.00015499,2]
[399853120,1766746240048,-500.0,0.00015499,2]
[399853121,1766746240060,-1000.0,0.000156,2]
[399853122,1766746240071,-211.7811296,0.00015673,2]
[399853123,1766746240082,-151.0,0.00016324,2]
[399853124,1766746240093,-151.0,0.00016338,2]
[399853125,1766746240104,-500.0,0.00016438,2]
[399853126,1766746240118,-175.38039616,0.00016438,2]
[399853127,1766746240129,-9999.99,0.00016709,2]
[399853128,1766746240140,-499.99,0.00016709,2]
[399853129,1766746240151,-150.99,0.00016709,2]
[399853130,1766746240161,-820.65,0.00016709,2]
[399853131,1766746240172,-250.0,0.00017,2]
[399853132,1766746240183,-785.1,0.00017,2]
[399853133,1766746240193,-150.99,0.00017,2]
[399853134,1766746240204,-999.99,0.00017,2]
[399853135,1766746240216,-150.0,0.000176,7]
[399853136,1766746240226,-455.82755607,0.00018253,2]
[399853137,1766746240237,-1105.81499664,0.00018399,2]
[399853138,1766746240247,-10290.19,0.00018792,2]
[399853139,1766746240258,-300.0,0.00019,2]
[399853140,1766746240272,-949.77,0.00019819,2]
[399853141,1766746240282,-198.77731677,0.00019935,2]
[399853142,1766746240292,-969.45,0.00020036,2]
[399853143,1766746240302,-250.83930928,0.00020071,2]
[399853144,1766746240318,-1600.0,0.00020082,2]
[399853145,1766746240336,-350.0,0.00021,2]
[399853146,1766746240357,-1105.81499664,0.00021399,2]
[399853147,1766746240379,-3176.67,0.00021517,2]
[399853148,1766746240401,-25500.13,0.00021917,2]
[399853149,1766746240422,-225.0,0.00021918,2]
[399853150,1766746240434,-150.0,0.00022,2]
[399853151,1766746240445,-500.0,0.00022187,2]
[399853153,1766746240456,-1852.42,0.00022187,2]
[399853155,1766746240468,-224.88,0.00022194,2]
[399853157,1766746240479,-510.36426481,0.00022461,2]
[399853159,1766746240489,-1600.0,0.00022593,2]
[399853161,1766746240502,-400.0,0.00023,2]
[399853163,1766746240514,-1105.81499664,0.00024399,2]
[399853165,1766746240525,-198.77731677,0.00024469,2]
[399853167,1766746240536,-17844.6832119,0.000248,3]
[399853169,1766746240546,-219.25,0.000255,14]
[399853171,1766746240557,-300.0,0.00027397,2]
[399853173,1766746240567,-1105.81499664,0.00027399,2]
[399853175,1766746240577,-198.77731677,0.00029004,2]
[399853177,1766746240587,-312.4,0.00030137,7]
[399853179,1766746240597,-152.0,0.00030219,2]
[399853181,1766746240607,-1105.81499664,0.00030399,2]
[399853183,1766746240618,-10290.19,0.00030572,2]
[399853185,1766746240627,-7420.55525491,0.00031365,2]
[399853187,1766746240640,-567.4211886,0.00031365,2]
[399853189,1766746240653,-6176.93849631,0.00031365,2]
[399853190,1766746240665,-106565.34506018,0.00031365,2]
[399853191,1766746240675,-500.0,0.00031365,20]
[399853192,1766746240685,-218.0,0.00031507,120]
[399853193,1766746240695,-946.5,0.00031626,30]
[399853194,1766746240704,-500.0,0.00032172,2]
[399853195,1766746240715,-182.71,0.000323,14]
[399853196,1766746240725,-500.0,0.00032877,7]
[399853197,1766746240739,-457.47659841,0.00032877,7]
[399853198,1766746240749,-2563.46,0.000333,14]
[399853199,1766746240760,-972.53,0.000333,14]
[399853200,1766746240770,-198.77731677,0.00033539,2]
[399853201,1766746240780,-1327.0,0.00033703,2]
[399853202,1766746240790,-1610.0,0.00033703,2]
[399853203,1766746240800,-612.0,0.00033703,2]
[399853204,1766746240810,-432.0,0.00033703,2]
[399853205,1766746240820,-4808.0,0.00033703,2]
[399853206,1766746240830,-564.0,0.00033703,2]
[399853207,1766746240840,-2430.0,0.00033703,2]
[399853208,1766746240851,-1406.17,0.00035616,120]
[399853209,1766746240861,-1000.0,0.00036699,30]
[399853210,1766746240871,-1610.0,0.00036703,2]
[399853211,1766746240882,-612.0,0.00036703,2]
[399853212,1766746240893,-432.0,0.00036703,2]
[399853213,1766746240905,-564.0,0.00036703,2]
[399853214,1766746240916,-2430.0,0.00036703,2]
[399853215,1766746240926,-1406.17,0.00036712,120]
[399853216,1766746240936,-1406.17,0.00037808,120]
[399853217,1766746240948,-1258.0,0.0003783,20]
[399853218,1766746240958,-175.0,0.00038,120]
[399853219,1766746240968,-198.77731677,0.00038073,2]
[399853220,1766746240980,-1258.0,0.0003822,20]
[399853221,1766746240990,-157.38311085,0.00038244,7]
[399853222,1766746241001,-155.15685309,0.00038244,7]
[399853223,1766746241012,-159.10512061,0.00038244,7]
[399853224,1766746241022,-162.26054214,0.00038244,7]
[399853225,1766746241031,-155.98355595,0.00038244,7]
[399853226,1766746241041,-156.76302164,0.00038244,7]
[399853227,1766746241051,-151.77304176,0.00038244,7]
[399853228,1766746241060,-152.42122212,0.00038244,7]
[399853229,1766746241070,-152.57737943,0.00038244,7]
[399853230,1766746241080,-155.05161451,0.00038244,7]
[399853231,1766746241090,-1000.0,0.00038354,27]
[399853232,1766746241104,-468.6,0.00038356,41]
[399853233,1766746241114,-1258.0,0.0003861,20]
[399853234,1766746241125,-1000.0,0.00038644,5]
[399853235,1766746241134,-381.155,0.00038893,53]
[399853236,1766746241144,-1406.17,0.00038904,120]
[399853237,1766746241155,-1000.0,0.00038988,4]
[399853238,1766746241164,-1000.0,0.00038998,29]
[399853239,1766746241174,-1000.0,0.00038999,30]
[399853240,1766746241184,-1258.0,0.00039,20]
[399853241,1766746241195,-1000.0,0.00039039,30]
[399853242,1766746241205,-1258.0,0.0003939,20]
[399853243,1766746241215,-1610.0,0.00039703,2]
[399853244,1766746241225,-612.0,0.00039703,2]
[399853245,1766746241235,-432.0,0.00039703,2]
[399853246,1766746241245,-564.0,0.00039703,2]
[399853247,1766746241255,-2430.0,0.00039703,2]
[399853248,1766746241265,-1258.0,0.0003978,20]
[399853249,1766746241276,-4342.0,0.00039848,5]
[399853250,1766746241286,-1406.17,0.0004,120]
[399853251,1766746241300,-500.0,0.0004,120]
[399853252,1766746241310,-1258.0,0.0004017,20]
[399853253,1766746241320,-1000.0,0.00040371,6]
[399853254,1766746241330,-500.0,0.000405,120]
[399853255,1766746241339,-1000.0,0.00040711,30]
[399853256,1766746241350,-1000.0,0.00040938,21]
[399853257,1766746241361,-2563.46,0.00041,14]
[399853258,1766746241371,-972.53,0.00041,14]
[399853259,1766746241381,-500.0,0.00041,120]
[399853260,1766746241391,-1220.66,0.00041041,2]
[399853261,1766746241401,-1220.66,0.00041041,2]
[399853262,1766746241411,-1220.66,0.00041041,2]
[399853263,1766746241421,-1220.66,0.00041041,2]
[399853264,1766746241432,-554.37,0.00041041,2]
[399853265,1766746241442,-465.05,0.00041041,2]
[399853266,1766746241453,-300.0,0.00041041,2]
[399853267,1766746241463,-554.37,0.00041041,2]
[399853268,1766746241474,-465.05,0.00041041,2]
[399853269,1766746241486,-554.37,0.00041041,2]
[399853270,1766746241496,-465.05,0.00041041,2]
[399853271,1766746241506,-465.05,0.00041041,2]
[399853272,1766746241517,-150.0,0.00041041,2]
[399853273,1766746241527,-554.37,0.00041041,2]
[399853274,1766746241536,-465.05,0.00041041,2]
[399853275,1766746241546,-554.37,0.00041041,2]
[399853276,1766746241557,-554.37,0.00041041,2]
[399853277,1766746241567,-465.05,0.00041041,2]
[399853278,1766746241577,-150.0,0.00041041,2]
[399853279,1766746241587,-554.37,0.00041041,2]
[399853280,1766746241597,-465.05,0.00041041,2]
[399853281,1766746241607,-465.05,0.00041041,2]
[399853282,1766746241617,-1101.38,0.00041041,2]
[399853283,1766746241627,-150.0,0.00041041,2]
[399853284,1766746241639,-709.41,0.00041047,30]
[399853285,1766746241649,-500.0,0.00041054,14]
[399853286,1766746241659,-500.0,0.00041054,14]
[399853287,1766746241669,-500.0,0.00041054,14]
[399853288,1766746241678,-1000.0,0.00041067,22]
[399853289,1766746241688,-1000.0,0.00041089,30]
[399853290,1766746241698,-1406.17,0.00041095,120]
[399853291,1766746241708,-1000.0,0.00041095,20]
[399853292,1766746241718,-1000.0,0.00041095,30]
[399853293,1766746241728,-316.1825669,0.00041096,2]
[399853294,1766746241738,-2000.0,0.000411,2]
[399853295,1766746241748,-551.48262127,0.00041204,7]
[399853296,1766746241758,-300.261843,0.00041281,105]
[399853297,1766746241768,-200.0,0.00041344,120]
[399853298,1766746241778,-1000.0,0.00041533,30]
[399853299,1766746241787,-1220.66,0.00041863,120]
[399853300,1766746241797,-1220.66,0.00041863,120]
[399853301,1766746241807,-1220.66,0.00041863,120]
[399853302,1766746241816,-1220.66,0.00041863,120]
[399853303,1766746241826,-1220.66,0.00041863,120]
[399853304,1766746241836,-1220.66,0.00041863,120]
[399853305,1766746241846,-1220.66,0.00041863,120]
[399853306,1766746241857,-704.04,0.00041863,30]
[399853307,1766746241879,-150.0,0.00041863,30]
[399853308,1766746241891,-150.0,0.00041863,30]
[399853309,1766746241904,-465.05,0.00041863,30]
[399853310,1766746241915,-150.0,0.00041863,30]
[399853311,1766746241925,-150.0,0.00041863,30]
[399853312,1766746241936,-150.0,0.00041863,30]
[399853313,1766746241947,-150.0,0.00041863,30]
[399853314,1766746241957,-150.0,0.00041863,30]
[399853315,1766746241966,-150.0,0.00041863,30]
[399853316,1766746241978,-150.0,0.00041863,30]
[399853317,1766746241988,-150.0,0.00041863,30]
[399853318,1766746241997,-150.0,0.00041863,30]
[399853319,1766746242008,-150.0,0.00041863,30]
[399853320,1766746242018,-150.0,0.00041863,30]
[399853321,1766746242028,-150.52,0.00041863,30]
[399853322,1766746242038,-408.08823463,0.00042,2]
[399853323,1766746242048,-3749.0,0.00042,120]
[399853324,1766746242058,-1406.17,0.00042191,120]
[399853325,1766746242068,-1065.72488544,0.000422,120]
[399853326,1766746242079,-332.4,0.00042239,7]
[399853327,1766746242089,-1000.0,0.00042277,30]
[399853328,1766746242099,-3142.7423859,0.00042306,2]
[399853329,1766746242109,-12949.1260098,0.00042306,2]
[399853330,1766746242118,-42453.0270112,0.00042306,2]
[399853331,1766746242128,-10290.19,0.00042353,2]
[399853332,1766746242138,-4450.82345161,0.00042399,15]
[399853333,1766746242148,-1000.0,0.00042399,15]
[399853334,1766746242159,-1000.0,0.00042399,26]
[399853335,1766746242169,-1000.0,0.00042399,30]
[399853336,1766746242179,-12669.3987401,0.00042399,2]
[399853337,1766746242189,-253.0,0.000424,39]
[399853338,1766746242199,-1000.0,0.00042469,30]
[399853339,1766746242209,-1000.0,0.00042469,7]
[399853340,1766746242219,-1000.0,0.00042469,30]
[399853341,1766746242233,-1000.0,0.00042469,30]
[399853342,1766746242244,-1000.0,0.00042469,30]
[399853343,1766746242254,-1000.0,0.00042476,2]
[399853344,1766746242265,-1000.0,0.00042476,14]
[399853345,1766746242275,-1000.0,0.00042482,120]
[399853346,1766746242285,-150.0,0.00042482,20]
[399853347,1766746242295,-1000.0,0.00042482,30]
[399853348,1766746242305,-250.0,0.00042482,30]
[399853349,1766746242316,-500.0,0.00042482,30]
[399853350,1766746242327,-260.34840278,0.00042482,30]
[399853351,1766746242338,-500.0,0.00042482,30]
[399853352,1766746242348,-250.0,0.00042482,30]
[399853353,1766746242358,-500.0,0.00042482,30]
[399853354,1766746242368,-500.0,0.00042482,30]
[399853355,1766746242379,-500.0,0.00042482,30]
[399853356,1766746242390,-500.0,0.00042482,30]
[399853357,1766746242400,-500.0,0.00042482,30]
[399853358,1766746242410,-500.0,0.00042482,30]
[399853359,1766746242421,-500.0,0.00042482,30]
[399853360,1766746242431,-500.0,0.00042482,30]
[399853361,1766746242441,-500.0,0.00042482,30]
[399853362,1766746242451,-500.0,0.00042482,30]
[399853363,1766746242461,-554.05487278,0.00042482,30]
[399853364,1766746242472,-500.0,0.00042482,30]
[399853365,1766746242483,-500.0,0.00042482,30]
[399853366,1766746242494,-500.0,0.00042482,30]
[399853367,1766746242505,-500.0,0.00042482,30]
[399853368,1766746242518,-500.0,0.00042482,30]
[399853369,1766746242529,-500.0,0.00042482,30]
[399853370,1766746242539,-500.0,0.00042482,30]
[399853371,1766746242549,-500.0,0.00042482,30]
[399853372,1766746242560,-500.0,0.00042482,30]
[399853373,1766746242571,-414.0,0.00042482,30]
[399853374,1766746242581,-500.0,0.00042482,30]
[399853375,1766746242596,-429.318,0.00042482,30]
[399853376,1766746242606,-500.0,0.00042482,30]
[399853377,1766746242617,-445.202766,0.00042482,30]
[399853378,1766746242627,-500.0,0.00042482,30]
[399853379,1766746242638,-461.67526834,0.00042482,30]
[399853380,1766746242648,-500.0,0.00042482,30]
[399853381,1766746242659,-319.01072839,0.00042482,30]
[399853382,1766746242669,-500.0,0.00042482,30]
[399853383,1766746242679,-500.0,0.00042482,30]
[399853384,1766746242690,-500.0,0.00042482,30]
[399853385,1766746242700,-500.0,0.00042482,30]
[399853386,1766746242710,-500.0,0.00042482,30]
[399853387,1766746242720,-500.0,0.00042482,30]
[399853388,1766746242730,-84320.81458944,0.00042483,30]
[399853389,1766746242740,-10000.0,0.00042483,30]
[399853390,1766746242750,-500.0,0.00042483,120]
[399853391,1766746242762,-500.0,0.00042483,120]
[399853392,1766746242772,-500.0,0.00042483,120]
[399853393,1766746242782,-500.0,0.00042483,120]
[399853394,1766746242793,-500.0,0.00042483,120]
[399853395,1766746242804,-500.0,0.00042483,120]
[399853396,1766746242815,-500.0,0.00042483,120]
[399853397,1766746242827,-500.0,0.00042483,120]
[399853398,1766746242838,-500.0,0.00042483,120]
[399853399,1766746242850,-500.0,0.00042483,120]
[399853400,1766746242861,-500.0,0.00042483,120]
[399853401,1766746242872,-500.0,0.00042483,120]
[399853402,1766746242883,-500.0,0.00042483,120]
[399853403,1766746242894,-500.0,0.00042483,120]
[399853404,1766746242907,-500.0,0.00042483,120]
[399853405,1766746242919,-500.0,0.00042483,120]
[399853406,1766746242929,-500.0,0.00042483,120]
[399853407,1766746242939,-500.0,0.00042483,120]
[399853408,1766746242956,-500.0,0.00042483,120]
[399853409,1766746242967,-500.0,0.00042483,120]
[399853410,1766746242978,-500.0,0.00042483,120]
[399853411,1766746242988,-500.0,0.00042483,120]
[399853412,1766746242998,-500.0,0.00042483,120]
[399853413,1766746243009,-500.0,0.00042483,120]
[399853414,1766746243020,-500.0,0.00042483,120]
[399853415,1766746243030,-645.0,0.00042483,120]
[399853416,1766746243040,-2000.0,0.00042483,30]
[399853417,1766746243051,-151.04,0.00042491,30]
[399853418,1766746243060,-151.0,0.00042498,120]
[399853419,1766746243070,-151.0,0.00042498,120]
[399853420,1766746243080,-151.0,0.00042498,2]
[399853421,1766746243090,-151.0,0.00042498,120]
[399853422,1766746243100,-151.07927,0.00042498,120]
[399853423,1766746243111,-297871.10448006,0.00042498,27]
[399853424,1766746243121,-390717.28626581,0.00042499,30]
[399853425,1766746243139,-449.53015002,0.00042499,30]
[399853428,1766746243626,-1847470.4958318,0.00042499,30]
[399853429,1766746243638,-166320.83629159,0.00042499,30]
[399853430,1766746243650,-914.73118344,0.00042499,30]
[399853431,1766746243662,-162664.40645126,0.00042499,30]
[399853432,1766746244472,-1220.66,0.00041041,2]
[399853433,1766746244483,-465.05,0.00041041,2]
[399853434,1766746244493,-82.37,0.00042499,30]
[399853435,1766746244506,-25149.11484012,0.00042499,30]
[399853449,1766746246276,-1086.88479984,0.00033399,2]
[399853451,1766746246289,-18.9301968,0.00033399,2]
[399853453,1766746246299,-240.97082095,0.00042499,30]
[399853455,1766746246311,-1597.44114134,0.00042499,30]
[399853457,1766746246323,-412.82763878,0.00042499,30]
[399853462,1766746246753,-34337.69204065,0.00042499,30]
[399853464,1766746266465,600.0,0.0001694,120]
[399853465,1766746266582,436.96815083,0.00018898,120]
[399853466,1766746267334,288.54493564,0.0001694,120]
[399853591,1766747431999,-240.825,0.00015092,2]
[399853592,1766747432011,-387.0,0.00015299,2]
[399853593,1766747432020,-159.02185344,0.000153,2]
[399853594,1766747432031,-522.84079022,0.000153,2]
[399853595,1766747432043,-361.81120711,0.000153,2]
[399853596,1766747432053,-4591.98679289,0.000153,2]
[399853597,1766747432065,-2178.95589453,0.000153,2]
[399853598,1766747432076,-482.13,0.000153,2]
[399853599,1766747432104,-529.82070828,0.000153,2]
[399853600,1766747432115,-3039.66725529,0.000153,2]
[399853601,1766747432159,-787.27893922,0.000153,2]
[399853602,1766747432171,-827.08473548,0.000153,2]
[399853603,1766747432213,-448.54201431,0.000153,2]
[399853604,1766747432274,-540.54142778,0.000153,2]